fUSD/lending_fUSD_20260225
["ID","MTS","AMOUNT","RATE_DAILY","PERIOD"]
[406654361,1772038232750,-500.0,0.000103,2]
[406654362,1772038232761,-500.0,0.000103,2]
[406654363,1772038232770,-500.0,0.000103,2]
[406654364,1772038232780,-500.0,0.000103,2]
[406654365,1772038232790,-500.0,0.000103,2]
[406654366,1772038232799,-500.0,0.000103,2]
[406654367,1772038232808,-500.0,0.000103,2]
[406654368,1772038232817,-500.0,0.000103,2]
[406654369,1772038232826,-500.0,0.000103,2]
[406654370,1772038232835,-500.0,0.000103,2]
[406654371,1772038232845,-500.0,0.000103,2]
[406654372,1772038232854,-500.0,0.000103,2]
[406654373,1772038232863,-500.0,0.000103,2]
[406654374,1772038232872,-679.04903497,0.000103,2]
[406654375,1772038232883,-2000.0,0.000105,2]
[406654376,1772038232893,-6453.0,0.00010535,2]
[406654377,1772038232902,-3789.16746566,0.000109,2]
[406654378,1772038232911,-3789.1674656,0.000109,2]
[406654379,1772038232921,-3789.1674656,0.000109,2]
[406654380,1772038232930,-150.0,0.00010959,2]
[406654381,1772038232939,-6415.0,0.00010959,2]
[406654382,1772038232950,-2000.0,0.00011,2]
[406654383,1772038232960,-17145.16964719,0.00011099,2]
[406654384,1772038232969,-17145.16964714,0.00011099,2]
[406654385,1772038232979,-17145.16964714,0.00011099,2]
[406654386,1772038232989,-17145.16964714,0.00011099,2]
[406654387,1772038232998,-2699.16386559,0.00011099,2]
[406654388,1772038233008,-2699.1638655,0.00011099,2]
[406654389,1772038233017,-2699.1638655,0.00011099,2]
[406654390,1772038233027,-2699.1638655,0.00011099,2]
[406654391,1772038233036,-21212.0,0.000112,2]
[406654392,1772038233046,-3789.1674656,0.00011358,2]
[406654393,1772038233056,-2000.0,0.000115,2]
[406654394,1772038233065,-17145.16964714,0.0001154,2]
[406654395,1772038233075,-2699.1638655,0.0001154,2]
[406654396,1772038233086,-9035.0,0.00011589,2]
[406654397,1772038233096,-5531.0,0.000116,3]
[406654398,1772038233107,-20000.0,0.0001166,2]
[406654399,1772038233117,-166.66,0.00011704,2]
[406654400,1772038233128,-2000.0,0.00012,2]
[406654401,1772038233137,-5531.0,0.00012,5]
[406654402,1772038233147,-166.66,0.0001209,2]
[406654403,1772038233156,-1000.0,0.00012275,2]
[406654404,1772038233167,-300.0,0.00012324,4]
[406654405,1772038233176,-166.66,0.00012477,2]
[406654406,1772038233186,-2000.0,0.000125,2]
[406654407,1772038233343,-12199.0,0.00012748,2]
[406654408,1772038233353,-17145.16964714,0.00012812,2]
[406654409,1772038233364,-2699.1638655,0.00012812,2]
[406654410,1772038233375,-166.66,0.00012863,2]
[406654411,1772038233385,-204.59409661,0.0001289,2]
[406654412,1772038233395,-500.0,0.0001289,2]
[406654413,1772038233406,-500.0,0.0001289,2]
[406654414,1772038233416,-500.0,0.0001289,2]
[406654415,1772038233425,-500.0,0.0001289,2]
[406654416,1772038233435,-500.0,0.0001289,2]
[406654417,1772038233445,-500.0,0.0001289,2]
[406654418,1772038233454,-500.0,0.0001289,2]
[406654419,1772038233464,-500.0,0.0001289,2]
[406654420,1772038233474,-500.0,0.0001289,2]
[406654421,1772038233483,-500.0,0.0001289,2]
[406654422,1772038233493,-500.0,0.0001289,2]
[406654423,1772038233502,-500.0,0.0001289,2]
[406654424,1772038233511,-500.0,0.0001289,2]
[406654425,1772038233521,-500.0,0.0001289,2]
[406654426,1772038233531,-500.0,0.0001289,2]
[406654427,1772038233541,-811.03700087,0.0001289,2]
[406654428,1772038233551,-500.0,0.0001289,2]
[406654429,1772038233560,-3789.1674656,0.00012994,2]
[406654430,1772038233570,-2000.0,0.00013,2]
[406654431,1772038233579,-188.367994,0.00013058,2]
[406654432,1772038233590,-243.848467,0.0001311,2]
[406654433,1772038233599,-166.66,0.00013249,2]
[406654434,1772038233609,-173.91437885,0.00013448,2]
[406654435,1772038233619,-2000.0,0.000135,2]
[406654436,1772038233628,-166.66,0.00013636,2]
[406654437,1772038233638,-20000.0,0.0001366,2]
[406654438,1772038233647,-500.0,0.00013698,2]
[406654439,1772038233658,-500.0,0.00013698,2]
[406654440,1772038233668,-500.0,0.00013698,2]
[406654441,1772038233678,-500.0,0.00013698,2]
[406654442,1772038233688,-400.83516378,0.00013698,2]
[406654443,1772038233697,-500.0,0.00013698,2]
[406654444,1772038233707,-387.31685331,0.00013698,2]
[406654445,1772038233716,-500.0,0.00013698,2]
[406654446,1772038233726,-500.0,0.00013698,2]
[406654447,1772038233735,-500.0,0.00013698,2]
[406654448,1772038233744,-269.06190613,0.00013698,2]
[406654449,1772038233754,-500.0,0.00013698,2]
[406654450,1772038233763,-500.0,0.00013698,2]
[406654451,1772038233773,-453.06341333,0.00013698,2]
[406654452,1772038233782,-500.0,0.00013698,2]
[406654453,1772038233791,-500.0,0.00013698,2]
[406654454,1772038233800,-500.0,0.00013698,2]
[406654455,1772038233809,-500.0,0.00013698,2]
[406654456,1772038233818,-500.0,0.00013698,2]
[406654457,1772038233828,-500.0,0.00013698,2]
[406654458,1772038233837,-500.0,0.00013698,2]
[406654459,1772038233846,-442.42094836,0.00013698,2]
[406654460,1772038233855,-500.0,0.00013698,2]
[406654461,1772038233864,-500.0,0.00013698,2]
[406654462,1772038233874,-500.0,0.00013698,2]
[406654463,1772038233884,-500.0,0.00013698,2]
[406654464,1772038233894,-500.0,0.00013698,2]
[406654465,1772038233903,-500.0,0.00013698,2]
[406654466,1772038233913,-500.0,0.00013698,2]
[406654467,1772038233922,-500.0,0.00013698,2]
[406654468,1772038233932,-500.0,0.00013698,2]
[406654469,1772038233941,-500.0,0.00013698,2]
[406654470,1772038233951,-500.0,0.00013698,2]
[406654471,1772038233960,-558.2352126,0.00013698,2]
[406654472,1772038233970,-500.0,0.00013699,2]
[406654473,1772038233979,-620.36908714,0.00013699,2]
[406654474,1772038233989,-500.0,0.00013699,2]
[406654475,1772038233998,-160.89687395,0.00013699,2]
[406654476,1772038234008,-500.0,0.00013699,2]
[406654477,1772038234017,-500.0,0.00013699,2]
[406654478,1772038234027,-161.12812418,0.00013699,2]
[406654479,1772038234036,-500.0,0.00013699,2]
[406654480,1772038234046,-524.32496394,0.00013699,2]
[406654481,1772038234055,-209.669428,0.00013699,2]
[406654482,1772038234065,-500.0,0.00013699,2]
[406654483,1772038234075,-335.65029794,0.00013699,2]
[406654484,1772038234084,-500.0,0.00013699,2]
[406654485,1772038234094,-500.0,0.00013699,2]
[406654486,1772038234103,-500.0,0.00013699,2]
[406654487,1772038234113,-500.0,0.00013699,2]
[406654488,1772038234123,-500.0,0.00013699,2]
[406654489,1772038234132,-500.0,0.00013699,2]
[406654490,1772038234142,-500.0,0.00013699,2]
[406654491,1772038234151,-163.76963508,0.00013699,2]
[406654492,1772038234162,-500.0,0.00013699,2]
[406654493,1772038234171,-500.0,0.00013699,2]
[406654494,1772038234181,-500.0,0.00013699,2]
[406654495,1772038234190,-500.0,0.00013699,2]
[406654496,1772038234200,-308.64663473,0.00013699,2]
[406654497,1772038234211,-500.0,0.00013699,2]
[406654498,1772038234220,-500.0,0.00013699,2]
[406654499,1772038234229,-500.0,0.00013699,2]
[406654500,1772038234239,-500.0,0.00013699,2]
[406654501,1772038234248,-500.0,0.00013699,2]
[406654502,1772038234257,-500.0,0.00013699,2]
[406654503,1772038234267,-337.75482183,0.00013699,2]
[406654504,1772038234276,-500.0,0.00013699,2]
[406654505,1772038234287,-500.0,0.00013699,2]
[406654506,1772038234299,-500.0,0.00013699,2]
[406654507,1772038234311,-500.0,0.00013699,2]
[406654508,1772038234320,-500.0,0.00013699,2]
[406654509,1772038234329,-161.14332278,0.00013699,2]
[406654510,1772038234340,-500.0,0.00013699,2]
[406654511,1772038234350,-500.0,0.00013699,2]
[406654512,1772038234359,-500.0,0.00013699,2]
[406654513,1772038234369,-278.93340404,0.00013699,2]
[406654514,1772038234379,-163.99667352,0.00013699,2]
[406654515,1772038234389,-500.0,0.00013699,2]
[406654516,1772038234398,-500.0,0.00013699,2]
[406654517,1772038234409,-500.0,0.00013699,2]
[406654518,1772038234418,-500.0,0.00013699,2]
[406654519,1772038234428,-160.16,0.00013699,2]
[406654520,1772038234437,-500.0,0.00013699,2]
[406654521,1772038234447,-500.0,0.00013699,2]
[406654522,1772038234456,-500.0,0.00013699,2]
[406654523,1772038234465,-162.08719206,0.00013699,2]
[406654524,1772038234475,-500.0,0.00013699,2]
[406654525,1772038234484,-500.0,0.00013699,2]
[406654526,1772038234493,-500.0,0.00013699,2]
[406654527,1772038234503,-500.0,0.00013699,2]
[406654528,1772038234513,-500.0,0.00013699,2]
[406654529,1772038234522,-500.0,0.00013699,2]
[406654530,1772038234531,-500.0,0.00013699,2]
[406654531,1772038234541,-500.0,0.00013699,2]
[406654532,1772038234551,-500.0,0.00013699,2]
[406654533,1772038234560,-500.0,0.00013699,2]
[406654534,1772038234569,-500.0,0.00013699,2]
[406654535,1772038234579,-500.0,0.00013699,2]
[406654536,1772038234588,-500.0,0.00013699,2]
[406654537,1772038234598,-500.0,0.00013699,2]
[406654538,1772038234607,-500.0,0.00013699,2]
[406654539,1772038234616,-236.91,0.00013882,2]
[406654540,1772038234625,-2000.0,0.00014,2]
[406654541,1772038234635,-17145.16964714,0.00014084,2]
[406654542,1772038234644,-2699.1638655,0.00014084,2]
[406654543,1772038234654,-1000.0,0.00014247,2]
[406654544,1772038234663,-1000.0,0.00014247,2]
[406654545,1772038234672,-1000.0,0.00014247,2]
[406654546,1772038234681,-1000.0,0.00014247,2]
[406654547,1772038234690,-1000.0,0.00014247,2]
[406654548,1772038234699,-380.44800806,0.00014247,2]
[406654549,1772038234709,-1000.0,0.00014247,2]
[406654550,1772038234718,-1000.0,0.00014247,2]
[406654551,1772038234727,-1000.0,0.00014247,2]
[406654552,1772038234737,-1007.67306464,0.00014247,2]
[406654553,1772038234747,-1000.0,0.00014247,2]
[406654554,1772038234756,-776.00043833,0.00014247,2]
[406654555,1772038234765,-800.44121468,0.00014247,2]
[406654556,1772038234774,-1000.0,0.00014247,2]
[406654557,1772038234784,-1008.34147468,0.00014247,2]
[406654558,1772038234793,-467.67692832,0.00014247,2]
[406654559,1772038234803,-351.72128687,0.00014247,2]
[406654560,1772038234813,-1000.0,0.00014247,2]
[406654561,1772038234823,-1000.0,0.00014247,2]
[406654562,1772038234833,-1000.0,0.00014247,2]
[406654563,1772038234842,-992.23312849,0.00014247,2]
[406654564,1772038234852,-1000.0,0.00014247,2]
[406654565,1772038234862,-502.69399529,0.00014247,2]
[406654566,1772038234873,-1000.0,0.00014247,2]
[406654567,1772038234883,-1000.0,0.00014247,2]
[406654568,1772038234892,-1000.0,0.00014247,2]
[406654569,1772038234901,-1000.0,0.00014247,2]
[406654570,1772038234912,-604.2577825,0.00014247,2]
[406654571,1772038234921,-1000.0,0.00014247,2]
[406654572,1772038234930,-185.59048766,0.00014247,2]
[406654573,1772038234939,-1000.0,0.00014247,2]
[406654574,1772038234949,-175.96468334,0.00014247,2]
[406654575,1772038234958,-1000.0,0.00014247,2]
[406654576,1772038234967,-1000.0,0.00014247,2]
[406654577,1772038234977,-1000.0,0.00014247,2]
[406654578,1772038234986,-1000.0,0.00014247,2]
[406654579,1772038234996,-1000.0,0.00014247,2]
[406654580,1772038235005,-503.12005961,0.00014247,2]
[406654581,1772038235014,-1000.0,0.00014247,2]
[406654582,1772038235024,-1000.0,0.00014247,2]
[406654583,1772038235034,-1000.0,0.00014247,2]
[406654584,1772038235043,-1000.0,0.00014247,2]
[406654585,1772038235052,-374.88076834,0.00014247,2]
[406654586,1772038235062,-1000.0,0.00014247,2]
[406654587,1772038235071,-1000.0,0.00014247,2]
[406654588,1772038235080,-1000.0,0.00014247,2]
[406654589,1772038235089,-1004.88674942,0.00014247,2]
[406654590,1772038235098,-502.589699,0.00014247,2]
[406654591,1772038235107,-500.72491405,0.00014247,2]
[406654592,1772038235116,-1000.0,0.00014247,2]
[406654593,1772038235125,-1000.0,0.00014247,2]
[406654594,1772038235134,-1000.0,0.00014247,2]
[406654595,1772038235143,-1000.0,0.00014247,2]
[406654596,1772038235152,-2000.0,0.000145,2]
[406654597,1772038235161,-3789.1674656,0.00014629,2]
[406654598,1772038235170,-1500.0,0.00014795,2]
[406654599,1772038235179,-344.84278362,0.00014795,2]
[406654600,1772038235188,-502.28503114,0.00014795,2]
[406654601,1772038235196,-1500.0,0.00014795,2]
[406654602,1772038235206,-788.09474142,0.00014795,2]
[406654603,1772038235215,-1500.0,0.00014795,2]
[406654604,1772038235223,-1500.0,0.00014795,2]
[406654605,1772038235232,-1500.0,0.00014795,2]
[406654606,1772038235242,-1500.0,0.00014795,2]
[406654607,1772038235251,-1500.0,0.00014795,2]
[406654608,1772038235260,-1091.6833327,0.00014795,2]
[406654609,1772038235269,-1500.0,0.00014795,2]
[406654610,1772038235278,-1500.0,0.00014795,2]
[406654611,1772038235287,-1508.10480934,0.00014795,2]
[406654612,1772038235298,-1500.0,0.00014795,2]
[406654613,1772038235310,-1500.0,0.00014795,2]
[406654614,1772038235319,-1500.0,0.00014795,2]
[406654615,1772038235328,-1500.0,0.00014795,2]
[406654616,1772038235339,-1500.0,0.00014795,2]
[406654617,1772038235348,-1505.84689332,0.00014795,2]
[406654618,1772038235357,-1500.0,0.00014795,2]
[406654619,1772038235367,-1012.76163768,0.00014795,2]
[406654620,1772038235377,-1009.93232969,0.00014795,2]
[406654621,1772038235386,-1500.0,0.00014795,2]
[406654622,1772038235395,-1500.0,0.00014795,2]
[406654623,1772038235404,-1216.25934348,0.00014795,2]
[406654624,1772038235413,-1500.0,0.00014795,2]
[406654625,1772038235422,-1500.0,0.00014795,2]
[406654626,1772038235431,-1500.0,0.00014795,2]
[406654627,1772038235440,-1500.0,0.00014795,2]
[406654628,1772038235449,-1500.0,0.00014795,2]
[406654629,1772038235458,-1006.69135807,0.00014795,2]
[406654630,1772038235467,-1500.0,0.00014795,2]
[406654631,1772038235475,-1500.0,0.00014795,2]
[406654632,1772038235484,-1500.0,0.00014795,2]
[406654633,1772038235493,-1500.0,0.00014795,2]
[406654634,1772038235502,-506.0,0.0001489,2]
[406654635,1772038235511,-250.0,0.00015,2]
[406654636,1772038235520,-2000.0,0.00015,2]
[406654637,1772038235529,-500.0,0.00015342,2]
[406654638,1772038235538,-1749.1830332,0.00015342,2]
[406654639,1772038235547,-2000.0,0.00015342,2]
[406654640,1772038235557,-1144.44196517,0.00015342,2]
[406654641,1772038235566,-2000.0,0.00015342,2]
[406654642,1772038235576,-2000.0,0.00015342,2]
[406654643,1772038235585,-2000.0,0.00015342,2]
[406654644,1772038235595,-2000.0,0.00015342,2]
[406654645,1772038235605,-1147.84261484,0.00015342,2]
[406654646,1772038235614,-1511.45189164,0.00015342,2]
[406654647,1772038235624,-2000.0,0.00015342,2]
[406654648,1772038235633,-526.85264,0.00015342,2]
[406654649,1772038235643,-2000.0,0.00015342,2]
[406654650,1772038235654,-2000.0,0.00015342,2]
[406654651,1772038235663,-2000.0,0.00015342,2]
[406654652,1772038235672,-288.76951139,0.00015342,2]
[406654653,1772038235682,-2000.0,0.00015342,2]
[406654654,1772038235692,-1597.09510233,0.00015342,2]
[406654655,1772038235701,-2000.0,0.00015342,2]
[406654656,1772038235711,-1703.52805437,0.00015342,2]
[406654657,1772038235721,-2000.0,0.00015342,2]
[406654658,1772038235730,-2000.0,0.00015342,2]
[406654659,1772038235739,-741.17434169,0.00015342,2]
[406654660,1772038235748,-2000.0,0.00015342,2]
[406654661,1772038235757,-2000.0,0.00015342,2]
[406654662,1772038235767,-1538.67533251,0.00015342,2]
[406654663,1772038235776,-2000.0,0.00015342,2]
[406654664,1772038235786,-17145.16964714,0.00015356,2]
[406654665,1772038235796,-2699.1638655,0.00015356,2]
[406654666,1772038235805,-2000.0,0.000155,2]
[406654667,1772038235814,-618.0,0.0001552,2]
[406654668,1772038235823,-3497.0,0.0001552,2]
[406654669,1772038235833,-1340.0,0.0001552,2]
[406654670,1772038235844,-1063.963,0.0001552,2]
[406654671,1772038235853,-150.0,0.0001552,2]
[406654672,1772038235862,-1277.0,0.0001552,2]
[406654673,1772038235871,-1219.12,0.0001552,2]
[406654674,1772038235881,-5982.0,0.0001552,2]
[406654675,1772038236012,-495.503,0.0001552,2]
[406654676,1772038236021,-3240.0,0.00015807,2]
[406654677,1772038236031,-500.0,0.00015832,2]
[406654678,1772038236040,-2500.0,0.0001589,2]
[406654679,1772038236049,-2500.0,0.0001589,2]
[406654680,1772038236059,-1341.04939345,0.0001589,2]
[406654681,1772038236068,-215.41849404,0.0001589,2]
[406654682,1772038236077,-429.49570382,0.0001589,2]
[406654683,1772038236087,-516.10263761,0.0001589,2]
[406654684,1772038236097,-2208.62062,0.0001589,2]
[406654685,1772038236106,-2500.0,0.0001589,2]
[406654686,1772038236115,-2019.14759919,0.0001589,2]
[406654687,1772038236124,-2500.0,0.0001589,2]
[406654688,1772038236134,-2500.0,0.0001589,2]
[406654689,1772038236143,-700.42773043,0.0001589,2]
[406654690,1772038236152,-2500.0,0.0001589,2]
[406654691,1772038236163,-614.542994,0.0001589,2]
[406654692,1772038236172,-505.60534384,0.0001589,2]
[406654693,1772038236182,-25314.65,0.00015918,2]
[406654694,1772038236191,-198.97193523,0.00015998,2]
[406654695,1772038236200,-2000.0,0.00016,2]
[406654696,1772038236209,-2000.0,0.00016,2]
[406654697,1772038236219,-3789.1674656,0.00016265,2]
[406654698,1772038236228,-500.0,0.00016356,2]
[406654699,1772038236236,-1000.0,0.00016356,2]
[406654700,1772038236246,-500.0,0.00016356,2]
[406654701,1772038236255,-1053.3,0.00016438,2]
[406654702,1772038236264,-266.68789925,0.00016438,2]
[406654703,1772038236273,-1528.27485084,0.00016438,2]
[406654704,1772038236282,-3000.0,0.00016438,2]
[406654705,1772038236292,-2984.08045004,0.00016438,2]
[406654706,1772038236307,-3000.0,0.00016438,2]
[406654707,1772038236316,-1273.75528776,0.00016438,2]
[406654708,1772038236325,-1041.36883601,0.00016438,2]
[406654709,1772038236334,-150.0,0.000165,2]
[406654710,1772038236345,-2000.0,0.000165,2]
[406654711,1772038236355,-500.0,0.00016555,2]
[406654712,1772038236364,-271588.1071343,0.00016556,2]
[406654713,1772038236374,-2000.0,0.000166,2]
[406654714,1772038236383,-20000.0,0.000166,2]
[406654715,1772038236392,-17145.16964714,0.00016628,2]
[406654716,1772038236401,-2699.1638655,0.00016628,2]
[406654717,1772038236412,-506.0,0.0001665,3]
[406654718,1772038236421,-248.0,0.00016675,2]
[406654719,1772038236432,-1053.3,0.00016712,2]
[406654720,1772038236441,-166.47,0.00016712,2]
[406654721,1772038236450,-248.0,0.00016723,2]
[406654722,1772038236459,-248.0,0.00016792,2]
[406654723,1772038236468,-200.0,0.000169,6]
[406654724,1772038236477,-248.0,0.00016935,2]
[406654725,1772038236486,-1053.3,0.00016986,2]
[406654726,1772038236495,-291.80881226,0.00016986,2]
[406654727,1772038236504,-3500.0,0.00016986,2]
[406654728,1772038236513,-193.0,0.00017,2]
[406654729,1772038236523,-200.0,0.00017,2]
[406654730,1772038236534,-200.0,0.00017,2]
[406654731,1772038236544,-300.0,0.00017,2]
[406654732,1772038236553,-2000.0,0.00017,2]
[406654733,1772038236562,-500.0,0.00017,2]
[406654734,1772038236571,-500.0,0.00017,5]
[406654735,1772038236580,-500.0,0.00017,2]
[406654736,1772038236589,-500.0,0.00017,5]
[406654737,1772038236599,-364.33297037,0.00017,2]
[406654738,1772038236608,-500.0,0.00017,6]
[406654739,1772038236617,-151.0,0.00017099,2]
[406654740,1772038236627,-156.587,0.00017099,2]
[406654741,1772038236636,-277.35679052,0.00017099,2]
[406654742,1772038236645,-162.380719,0.00017099,2]
[406654743,1772038236656,-160.11759511,0.00017099,2]
[406654744,1772038236666,-1158.93667388,0.000171,2]
[406654745,1772038236675,-800.0,0.000171,6]
[406654746,1772038236684,-815.0,0.00017157,2]
[406654747,1772038236694,-1100.0,0.000172,6]
[406654748,1772038236703,-3600.0,0.000172,6]
[406654749,1772038236713,-1053.3,0.0001726,2]
[406654750,1772038236722,-248.0,0.00017274,2]
[406654751,1772038236731,-1400.0,0.000173,6]
[406654752,1772038236740,-4500.0,0.000173,6]
[406654753,1772038236749,-300.0,0.00017331,5]
[406654754,1772038236759,-500.0,0.00017344,2]
[406654755,1772038236769,-815.0,0.00017344,2]
[406654756,1772038236779,-350.0,0.00017357,2]
[406654757,1772038236787,-200.0,0.000174,6]
[406654758,1772038236797,-900.0,0.000174,6]
[406654759,1772038236806,-815.0,0.00017415,2]
[406654760,1772038236815,-253.5221992,0.000175,2]
[406654761,1772038236825,-200.0,0.000175,6]
[406654762,1772038236834,-900.0,0.000175,6]
[406654763,1772038236843,-1053.3,0.00017534,2]
[406654764,1772038236853,-4000.0,0.00017534,2]
[406654765,1772038236862,-613.0,0.00017557,2]
[406654766,1772038236872,-150.0,0.00017557,2]
[406654767,1772038236882,-163.0,0.00017557,2]
[406654768,1772038236892,-200.0,0.000176,6]
[406654769,1772038236901,-900.0,0.000176,6]
[406654770,1772038236913,-1634.5001398,0.0001764,2]
[406654771,1772038236925,-815.0,0.0001764,2]
[406654772,1772038236935,-287.61899177,0.00017647,2]
[406654773,1772038236946,-20000.0,0.0001766,2]
[406654774,1772038236956,-350.0,0.00017675,2]
[406654775,1772038236965,-200.0,0.000177,6]
[406654776,1772038236975,-900.0,0.000177,6]
[406654777,1772038236985,-1000.0,0.00017726,7]
[406654778,1772038236996,-1000.0,0.00017733,2]
[406654779,1772038237006,-815.0,0.00017735,2]
[406654780,1772038237016,-1000.0,0.00017736,2]
[406654781,1772038237027,-1000.0,0.00017749,2]
[406654782,1772038237037,-350.0,0.00017749,2]
[406654783,1772038237047,-1000.0,0.0001775,2]
[406654784,1772038237057,-1000.0,0.00017768,2]
[406654785,1772038237068,-1000.0,0.00017775,2]
[406654786,1772038237078,-1000.0,0.00017787,2]
[406654787,1772038237089,-1000.0,0.00017788,2]
[406654788,1772038237099,-900.0,0.000178,6]
[406654789,1772038237109,-1117.0,0.000178,6]
[406654790,1772038237120,-1000.0,0.00017802,2]
[406654791,1772038237131,-1053.3,0.00017808,2]
[406654792,1772038237141,-500.0,0.00017808,2]
[406654793,1772038237151,-1000.0,0.00017815,2]
[406654794,1772038237163,-1000.0,0.00017816,2]
[406654795,1772038237173,-1000.0,0.00017827,2]
[406654796,1772038237183,-153.75720399,0.00017827,2]
[406654797,1772038237193,-17549.496941,0.0001783,2]
[406654798,1772038237203,-1000.0,0.00017843,2]
[406654799,1772038237213,-1000.0,0.00017843,2]
[406654800,1772038237223,-815.0,0.00017848,2]
[406654801,1772038237234,-1000.0,0.00017854,2]
[406654802,1772038237244,-500.0,0.00017863,2]
[406654803,1772038237255,-1000.0,0.00017865,2]
[406654805,1772038237268,-1000.0,0.00017871,2]
[406654806,1772038237278,-1000.0,0.00017873,2]
[406654807,1772038237289,-1000.0,0.00017876,2]
[406654808,1772038237300,-25000.0,0.00017882,3]
[406654809,1772038237318,-1000.0,0.00017886,2]
[406654810,1772038237330,-25000.0,0.00017891,3]
[406654811,1772038237340,-1000.0,0.00017893,2]
[406654812,1772038237350,-10000.0,0.000179,2]
[406654813,1772038237360,-25000.0,0.000179,3]
[406654814,1772038237369,-3789.1674656,0.000179,2]
[406654815,1772038237379,-17145.16964714,0.000179,2]
[406654816,1772038237390,-2699.1638655,0.000179,2]
[406654817,1772038237400,-4261.60321486,0.000179,2]
[406654818,1772038237413,-8826.0,0.000179,2]
[406654819,1772038237423,-1000.0,0.0001791,2]
[406654820,1772038237432,-500.0,0.00017918,2]
[406654823,1772038237442,-350.0,0.00017933,3]
[406654826,1772038237451,-1000.0,0.00017953,2]
[406654829,1772038237461,-1030.10231547,0.00017958,2]
[406654833,1772038237471,-500.0,0.00017972,2]
[406654836,1772038237480,-17401.0,0.00017973,2]
[406654838,1772038237490,-2606.0,0.00017973,2]
[406654841,1772038237500,-1000.0,0.00017973,2]
[406654842,1772038237510,-22873.9496202,0.00017995,2]
[406654844,1772038237520,-13250.15720123,0.00017995,2]
[406654846,1772038237749,-43587.07856047,0.00017995,2]
[406654847,1772038237759,-3113.2229569,0.00017995,2]
[406654848,1772038237768,-3037.60424661,0.00017995,2]
[406654849,1772038237779,-4299.61192219,0.00017995,2]
[406654850,1772038237788,-200.0,0.00017995,5]
[406654851,1772038237798,-151.0,0.00017995,5]
[406654852,1772038237807,-151.0,0.00017995,5]
[406654853,1772038237816,-151.0,0.00017995,5]
[406654854,1772038237825,-693.3919763,0.00017995,5]
[406654855,1772038237834,-719.04747942,0.00017995,5]
[406654856,1772038237844,-745.65223616,0.00017995,5]
[406654857,1772038237853,-773.2413689,0.00017995,5]
[406654858,1772038237862,-801.85129955,0.00017995,5]
[406654859,1772038237871,-151.0,0.00017995,5]
[406654860,1772038237880,-831.51979763,0.00017995,5]
[406654861,1772038237890,-151.0,0.00017995,5]
[406654862,1772038237899,-862.28603014,0.00017995,5]
[406654864,1772038237910,-151.0,0.00017995,5]
[406654866,1772038237919,-151.0,0.00017995,5]
[406654868,1772038237928,-151.0,0.00017995,5]
[406654870,1772038237937,-151.0,0.00017995,5]
[406654872,1772038237947,-151.0,0.00017995,5]
[406654874,1772038237956,-151.0,0.00017995,5]
[406654876,1772038237966,-500.0,0.00017995,5]
[406654878,1772038237977,-500.0,0.00017995,5]
[406654880,1772038237987,-500.0,0.00017995,5]
[406654882,1772038237996,-500.0,0.00017995,5]
[406654884,1772038238006,-500.0,0.00017995,5]
[406654886,1772038238015,-500.0,0.00017995,5]
[406654888,1772038238025,-500.0,0.00017995,5]
[406654890,1772038238034,-500.0,0.00017995,5]
[406654892,1772038238044,-500.0,0.00017995,5]